bitfinex/quotes_SOLUSD_20250811
["timestamp","ask_amount","ask_price","bid_price","bid_amount"]
[1754934300181,31.97999662,178.85,178.83,0.06]
[1754934300380,5.97999662,178.84,178.83,0.06]
[1754934302193,31.59133311,178.85,178.83,0.06]
[1754934302623,5.97999662,178.84,178.83,89.28]
[1754934304380,12.24158686,178.84,178.83,89.28]
[1754934304581,51.88158686,178.84,178.83,89.28]
[1754934305696,51.21158686,178.84,178.83,89.28]
[1754934306094,51.88158686,178.84,178.83,89.28]
[1754934306406,45.61999662,178.84,178.83,89.28]
[1754934307202,5.97999662,178.84,178.83,89.28]
[1754934307591,12.24158686,178.84,178.83,89.28]
[1754934307799,11.57158686,178.84,178.83,89.28]
[1754934308511,11.57158686,178.84,178.83,0.06]
[1754934309290,6.26159024,178.84,178.83,0.06]
[1754934309602,12.24158686,178.84,178.83,0.06]
[1754934310317,71.21136558,178.85,178.83,0.06]
[1754934310606,5.97999662,178.84,178.83,0.06]
[1754934312411,53.22813892,178.86,178.83,0.6]
[1754934312616,59.20813554,178.86,178.83,0.6]
[1754934312784,59.20813554,178.86,178.83,0.06]
[1754934312989,19.58813554,178.86,178.83,0.06]
[1754934313308,20.25813554,178.86,178.83,0.06]
[1754934313520,5.97999662,178.85,178.83,0.06]
[1754934313692,5.97999662,178.84,178.83,0.06]
[1754934314499,6.64999662,178.84,178.83,0.06]
[1754934314909,0.67,178.84,178.83,0.06]
[1754934315095,45.59999662,178.85,178.83,0.06]
[1754934315308,5.97999662,178.85,178.83,0.06]
[1754934316209,6.64999662,178.85,178.83,0.06]
[1754934316518,6.64999662,178.84,178.83,0.06]
[1754934317618,12.24158686,178.84,178.83,89.28]
[1754934318009,51.86158686,178.84,178.83,89.28]
[1754934318995,46.26999662,178.84,178.83,89.28]
[1754934319215,45.59999662,178.84,178.83,89.28]
[1754934319418,5.97999662,178.84,178.83,89.28]
[1754934319615,39.62,178.85,178.83,89.28]
[1754934319925,45.59999662,178.85,178.83,89.28]
[1754934320432,6.64999662,178.84,178.83,89.28]
[1754934321636,12.24158686,178.84,178.83,89.28]
[1754934322631,38.24158686,178.84,178.83,89.28]
[1754934322808,27.34780243,178.84,178.83,89.28]
[1754934323409,27.34780243,178.84,178.83,0.06]
[1754934323826,30.09718268,178.84,178.83,0.06]
[1754934325622,15.10621557,178.83,178.82,0.06]
[1754934325828,61.35621219,178.83,178.82,0.06]
[1754934326623,41.10621557,178.81,178.8,0.06]
[1754934326843,27.06620881,178.8,178.75,0.06]
[1754934327041,60.68621219,178.79,178.75,0.06]
[1754934327239,61.35621219,178.79,178.75,0.06]
[1754934327630,66.94936616,178.79,178.75,0.06]
[1754934330446,69.19007416,178.79,178.75,0.06]
[1754934331845,15.10621557,178.78,178.75,0.06]
[1754934332153,21.75621219,178.78,178.75,0.06]
[1754934332529,61.35621219,178.77,178.75,0.06]
[1754934332745,37.57408925,178.76,178.75,0.06]
[1754934332949,38.26408925,178.76,178.75,0.06]
[1754934333349,40.50529925,178.76,178.75,0.06]
[1754934334144,54.92151482,178.76,178.75,0.06]
[1754934334349,77.86408925,178.76,178.75,0.06]
[1754934334548,66.97030482,178.76,178.75,0.06]
[1754934337374,51.17408925,178.76,178.75,0.06]
[1754934337546,37.57408925,178.76,178.75,0.6]
[1754934337747,37.57408925,178.76,178.75,0.06]
[1754934337941,31.97999662,178.76,178.75,0.06]
[1754934338139,31.59409263,178.76,178.75,0.06]
[1754934338446,37.57408925,178.76,178.75,0.06]
[1754934339655,39.6,178.77,178.75,0.6]
[1754934339864,5.97999662,178.76,178.75,0.6]
[1754934340185,5.97999662,178.78,178.76,0.54]
[1754934341585,65.6,178.79,178.77,0.54]
[1754934341743,51.1725347,178.81,178.78,0.54]
[1754934341942,77.1725347,178.81,178.79,0.54]
[1754934342441,77.1725347,178.81,178.77,0.54]
[1754934342871,77.1725347,178.81,178.76,95.87999662]
[1754934343172,77.1725347,178.81,178.78,0.54]
[1754934343666,37.5725347,178.81,178.78,0.54]
[1754934344363,5.97999662,178.8,178.76,90.44]
[1754934345160,5.97999662,178.8,178.77,0.54]
[1754934345968,5.97999662,178.79,178.76,89.9]
[1754934347454,71.19260506,178.81,178.76,90.44]
[1754934347772,5.97999662,178.79,178.76,90.44]
[1754934351990,5.97999662,178.8,178.77,0.54]
[1754934352353,5.97999662,178.8,178.78,0.54]
[1754934353069,13.61066472,178.82,178.79,0.54]
[1754934353473,19.59066134,178.82,178.78,89.9]
[1754934353666,25.87290058,178.82,178.78,90.44]
[1754934354267,19.20290396,178.82,178.79,0.54]
[1754934354579,25.18290058,178.82,178.78,90.44]
[1754934354878,5.97999662,178.79,178.78,89.9]
[1754934355175,51.84315059,178.79,178.78,89.9]
[1754934356168,26.0,178.76,178.75,0.06]
[1754934356374,31.97999662,178.76,178.75,0.06]
[1754934356557,32.66999662,178.76,178.75,0.06]
[1754934357400,38.26408925,178.76,178.75,0.06]
[1754934358280,37.57408925,178.76,178.75,0.06]
[1754934358992,38.26408925,178.76,178.75,0.06]
[1754934359765,53.37030482,178.76,178.75,0.06]
[1754934361587,32.28409263,178.76,178.75,0.06]
[1754934361897,38.26408925,178.76,178.75,0.06]
[1754934362684,53.37030482,178.76,178.75,0.06]
[1754934364495,55.61138982,178.76,178.75,0.06]
[1754934364886,53.37030482,178.76,178.75,0.06]
[1754934369976,52.68030482,178.76,178.75,0.06]
[1754934370388,53.38030482,178.76,178.75,0.06]
[1754934372989,53.38030482,178.76,178.74,0.06]
[1754934373300,61.36621219,178.75,178.74,0.06]
[1754934373682,61.36621219,178.75,178.73,0.06]
[1754934373888,21.78621219,178.74,178.73,0.06]
[1754934374383,27.38093077,178.74,178.73,0.06]
[1754934376773,27.38093077,178.74,178.72,0.06]
[1754934377006,46.25999662,178.73,178.72,0.06]
[1754934377493,61.36621219,178.73,178.72,0.06]
[1754934377913,63.60792519,178.73,178.72,0.06]
[1754934378691,75.18295342,178.73,178.72,0.06]
[1754934378899,27.06620881,178.72,178.71,0.06]
[1754934379082,27.76620881,178.72,178.71,0.06]
[1754934379485,21.78621219,178.72,178.71,0.06]
[1754934380705,27.38155686,178.72,178.71,0.06]
[1754934380912,33.36155348,178.72,178.7,0.1]
[1754934381083,53.06620881,178.7,178.69,0.06]
[1754934381609,53.76620881,178.7,178.69,0.06]
[1754934383110,37.57596752,178.7,178.69,0.06]
[1754934383303,77.15596752,178.7,178.69,0.06]
[1754934384683,77.85596752,178.7,178.69,0.06]
[1754934384881,92.96218309,178.7,178.69,0.06]
[1754934385102,98.94217971,178.7,178.69,0.06]
[1754934385484,37.57596752,178.7,178.69,0.06]
[1754934385811,77.13596752,178.7,178.69,0.06]
[1754934386711,98.92217971,178.7,178.69,0.06]
[1754934389595,101.16414371,178.7,178.69,0.06]
[1754934389800,39.81793152,178.7,178.69,0.06]
[1754934390095,77.13596752,178.7,178.69,0.06]
[1754934390925,77.13596752,178.7,178.64,5.97999662]
[1754934390926,15.10621557,178.69,178.51,0.1]
[1754934391096,5.97999662,178.52,178.51,0.1]
[1754934391290,5.97999662,178.52,178.43,30.0]
[1754934391291,26.0,178.49,178.43,2.92378831]
[1754934391512,5.97999662,178.44,178.43,0.66]
[1754934391821,39.76,178.45,178.43,0.66]
[1754934392021,5.97999662,178.44,178.43,0.66]
[1754934392220,5.97999662,178.44,178.39,5.97999662]
[1754934392608,5.97999662,178.43,178.38,5.97999662]
[1754934392813,5.97999662,178.43,178.36,5.60663825]
[1754934392814,5.97999662,178.46,178.41,5.97999662]
[1754934393013,14.002352,178.52,178.36,5.60663825]
[1754934393014,26.0,178.49,178.45,5.97999662]
[1754934393414,26.0,178.49,178.46,0.66]
[1754934393725,31.97999662,178.49,178.46,0.66]
[1754934394346,31.97999662,178.49,178.47,0.66]
[1754934394637,65.78,178.49,178.48,0.66]
[1754934394938,26.0,178.49,178.48,0.66]
[1754934396141,39.78,178.52,178.48,0.66]
[1754934396323,9.59362273,178.51,178.48,0.66]
[1754934396523,9.59362273,178.51,178.49,0.66]
[1754934397358,49.39362273,178.5,178.46,89.9]
[1754934397517,9.59362273,178.47,178.46,89.9]
[1754934397716,9.59362273,178.47,178.44,90.56]
[1754934397944,39.8,178.48,178.44,90.56]
[1754934397945,9.59362273,178.46,178.44,90.56]
[1754934398147,9.59362273,178.47,178.44,90.56]
[1754934398538,49.39362273,178.48,178.45,0.66]
[1754934398740,9.59362273,178.47,178.45,0.66]
[1754934399245,49.39362273,178.48,178.46,0.66]
[1754934399555,39.8,178.48,178.46,0.66]
[1754934399739,49.39362273,178.48,178.46,0.66]
[1754934400045,9.59362273,178.47,178.43,0.66]
[1754934400225,9.59362273,178.46,178.43,0.66]
[1754934400718,46.07293921,178.48,178.43,0.66]
[1754934400921,9.59362273,178.46,178.43,0.66]
[1754934401717,39.8,178.48,178.44,0.66]
[1754934401921,9.59362273,178.47,178.44,0.66]
[1754934402934,48.52569182,178.52,178.46,9.59362273]
[1754934403118,9.59362273,178.51,178.42,5.60460207]
[1754934403319,9.59362273,178.43,178.33,16.44134822]
[1754934403567,9.59362273,178.34,178.33,14.78134822]
[1754934403867,40.76,178.36,178.33,15.44134822]
[1754934404025,26.0,178.37,178.34,0.66]
[1754934404224,40.78,178.38,178.35,0.66]
[1754934404444,9.59362273,178.38,178.33,14.28134822]
[1754934404751,0.58,178.46,178.37,9.59362273]
[1754934404926,66.8,178.45,178.38,0.66]
[1754934405122,9.59362273,178.42,178.38,0.66]
[1754934405448,40.82,178.44,178.33,19.88890075]
[1754934405449,9.59362273,178.39,178.36,0.66]
[1754934405855,9.59362273,178.39,178.37,0.66]
[1754934406037,9.59362273,178.39,178.38,0.66]
[1754934406239,9.59362273,178.41,178.38,0.66]
[1754934406433,9.59362273,178.42,178.38,0.66]
[1754934406856,9.59362273,178.41,178.38,0.66]
[1754934407055,9.59362273,178.41,178.39,0.66]
[1754934407359,9.59362273,178.4,178.39,0.66]
[1754934407556,9.59362273,178.4,178.36,0.66]
[1754934407747,5.60510158,178.41,178.36,0.66]
[1754934407954,9.59362273,178.39,178.36,0.66]
[1754934408143,9.59362273,178.39,178.33,23.87497095]
[1754934408344,16.838324,178.4,178.37,0.66]
[1754934408562,9.59362273,178.39,178.37,0.66]
[1754934408853,16.837379,178.42,178.38,0.66]
[1754934409057,9.59362273,178.41,178.39,0.66]
[1754934409448,9.59362273,178.4,178.37,0.66]
[1754934409643,9.59362273,178.39,178.37,0.66]
[1754934410156,9.59362273,178.38,178.37,0.66]
[1754934410357,9.59362273,178.38,178.34,0.72]
[1754934410559,9.59362273,178.36,178.35,0.66]
[1754934410750,9.59362273,178.37,178.35,0.66]
[1754934411558,9.59362273,178.36,178.35,0.66]
[1754934411757,5.60542658,178.4,178.35,0.66]
[1754934411934,9.59362273,178.37,178.35,0.66]
[1754934412351,9.59362273,178.37,178.36,0.66]
[1754934412560,46.40514777,178.41,178.36,0.66]
[1754934412738,9.59362273,178.38,178.36,0.66]
[1754934413159,40.8,178.41,178.37,0.66]
[1754934413363,9.59362273,178.4,178.35,9.59362273]
[1754934413658,26.43289173,178.4,178.38,0.66]
[1754934413858,9.59362273,178.39,178.38,0.66]
[1754934414766,9.59362273,178.39,178.35,0.66]
[1754934414939,9.59362273,178.39,178.36,0.66]
[1754934415147,9.59362273,178.39,178.37,0.66]
[1754934415566,9.59362273,178.39,178.35,0.66]
[1754934415745,9.59362273,178.39,178.34,9.65362273]
[1754934416069,9.59362273,178.38,178.35,0.66]
[1754934416276,9.59362273,178.37,178.35,0.66]
[1754934417138,22.4446678,178.4,178.35,0.66]
[1754934417361,9.59362273,178.37,178.34,0.06]
[1754934417746,9.59362273,178.37,178.34,0.72]
[1754934417946,9.59362273,178.37,178.35,0.66]
[1754934418158,9.59362273,178.37,178.34,0.06]
[1754934418360,9.59362273,178.37,178.35,0.66]
[1754934418568,22.4446678,178.4,178.34,0.06]
[1754934419069,0.58,178.39,178.34,0.06]
[1754934419248,9.59362273,178.39,178.35,0.66]
[1754934419451,16.839269,178.4,178.36,0.66]
[1754934419772,0.58,178.39,178.34,0.06]
[1754934419952,9.59362273,178.38,178.36,0.66]
[1754934420146,16.839269,178.4,178.37,0.66]
[1754934420352,41.24,178.44,178.35,0.66]
[1754934420664,9.593623,178.44,178.37,26.0]
[1754934420868,0.58,178.44,178.38,0.66]
[1754934421072,26.0,178.44,178.38,0.66]
[1754934421247,0.58,178.43,178.36,40.68]
[1754934421575,26.0,178.44,178.38,9.59362273]
[1754934421769,0.58,178.43,178.36,46.28653185]
[1754934421973,0.58,178.43,178.35,0.66]
[1754934422274,41.26,178.43,178.34,0.06]
[1754934422584,9.59362273,178.35,178.34,0.06]
[1754934422993,36.17362273,178.35,178.34,0.06]
[1754934423282,71.62679092,178.35,178.34,0.06]
[1754934423448,71.62679092,178.35,178.34,1e-08]
[1754934424286,56.54057535,178.35,178.34,1e-08]
[1754934424460,66.76,178.35,178.34,1e-08]
[1754934424870,26.0,178.35,178.34,1e-08]
[1754934425074,30.88679092,178.35,178.34,1e-08]
[1754934425590,41.10621557,178.34,178.32,0.06]
[1754934425795,9.59362273,178.24,178.21,0.67]
[1754934425952,26.0,178.19,178.12,0.67]
[1754934426291,15.10621557,178.26,178.18,9.59362273]
[1754934426576,15.10621557,178.26,178.22,9.59362273]
[1754934426577,40.86,178.26,178.22,9.59362273]
[1754934426779,26.0,178.27,178.23,9.59362273]
[1754934427090,26.0,178.27,178.25,9.59362273]
[1754934427282,26.0,178.31,178.26,9.59362273]
[1754934427472,10.29362273,178.35,178.3,9.59362273]
[1754934427682,40.9,178.35,178.3,9.59362273]
[1754934427863,50.49362273,178.37,178.32,9.59362273]
[1754934428354,26.0,178.36,178.32,9.59362273]
[1754934428778,9.59362273,178.37,178.32,9.59362273]
[1754934428977,9.59362273,178.36,178.31,9.59362273]
[1754934429166,9.59362273,178.36,178.3,0.67]
[1754934429167,9.59362273,178.32,178.28,0.06]
[1754934429492,9.59362273,178.29,178.28,0.06]
[1754934429779,9.59362273,178.3,178.28,0.06]
[1754934430162,9.59362273,178.31,178.28,0.06]
[1754934430891,26.0,178.33,178.28,0.06]
[1754934431090,35.59362273,178.34,178.29,10.26362273]
[1754934431258,26.0,178.34,178.3,10.26362273]
[1754934431454,26.0,178.34,178.3,9.59362273]
[1754934431755,26.0,178.34,178.3,0.06]
[1754934431966,26.0,178.34,178.31,9.59362273]
[1754934432166,9.59362273,178.33,178.3,0.06]
[1754934432381,9.59362273,178.32,178.3,0.06]
[1754934432583,9.59362273,178.31,178.3,0.06]
[1754934432985,6.30819864,178.32,178.3,0.06]
[1754934433168,9.59362273,178.31,178.3,0.06]
[1754934433583,9.593623,178.35,178.3,10.32362273]
[1754934433775,26.0,178.36,178.32,9.59362273]
[1754934433977,9.593623,178.36,178.32,10.26362273]
[1754934434180,10.293623,178.36,178.3,0.06]
[1754934434407,35.59362273,178.35,178.3,0.06]
[1754934434578,26.0,178.34,178.3,0.06]
[1754934434778,35.59362273,178.31,178.3,0.06]
[1754934434980,30.30804872,178.31,178.3,0.06]
[1754934435171,31.00804872,178.31,178.3,0.06]
[1754934435368,26.0,178.29,178.28,0.06]
[1754934435571,66.9,178.29,178.28,0.06]
[1754934435991,67.6,178.29,178.28,0.06]
[1754934436202,77.19362273,178.29,178.28,0.06]
[1754934436973,35.59362273,178.29,178.28,0.06]
[1754934437175,66.9,178.29,178.28,0.06]
[1754934437581,82.80246226,178.29,178.28,0.06]
[1754934439889,82.10246226,178.29,178.28,0.06]
[1754934440398,82.80246226,178.29,178.28,0.06]
[1754934441309,92.39608526,178.29,178.28,0.06]
[1754934441676,91.69608526,178.29,178.28,0.06]
[1754934441906,0.7,178.39,178.28,72.32362273]
[1754934442110,9.59362273,178.38,178.33,9.59362273]
[1754934442419,35.59362273,178.38,178.29,15.10621557]
[1754934442585,9.59362273,178.37,178.32,9.59362273]
[1754934442897,10.29362273,178.36,178.31,9.59362273]
[1754934443495,0.7,178.36,178.29,15.10621557]
[1754934443713,15.200239,178.37,178.32,9.59362273]
[1754934443898,67.14,178.38,178.34,9.59362273]
[1754934444083,10.32362273,178.43,178.37,9.59362273]
[1754934444412,26.0,178.39,178.36,9.59362273]
[1754934444589,9.59362273,178.38,178.34,9.59362273]
[1754934444792,0.7,178.38,178.34,9.59362273]
[1754934445104,0.7,178.38,178.35,9.59362273]
[1754934446304,26.0,178.39,178.35,9.59362273]
[1754934446504,26.0,178.38,178.37,9.59362273]
[1754934447601,26.0,178.38,178.37,99.49362273]
[1754934447803,26.0,178.38,178.37,89.9]
[1754934448009,26.0,178.38,178.37,99.49362273]
[1754934448386,26.0,178.38,178.37,89.9]
[1754934448700,26.0,178.38,178.37,99.49362273]
[1754934449310,26.0,178.38,178.37,89.9]
[1754934450100,26.0,178.38,178.37,99.49362273]
[1754934450295,26.0,178.38,178.37,89.9]
[1754934450915,26.0,178.38,178.37,99.49362273]
[1754934451793,5.60535468,178.41,178.37,99.49362273]
[1754934451998,5.60535468,178.41,178.38,9.59362273]
[1754934452202,6.30535468,178.41,178.38,9.59362273]
[1754934452384,0.7,178.4,178.37,89.9]
[1754934452589,6.30548185,178.4,178.37,99.49362273]
[1754934453013,0.7,178.4,178.37,99.49362273]
[1754934453214,0.03,178.38,178.37,89.9]
[1754934453394,0.03,178.38,178.37,99.49362273]
[1754934454085,0.03,178.38,178.37,89.9]
[1754934454494,0.03,178.38,178.37,99.49362273]
[1754934455014,0.03,178.38,178.37,114.5998383]
[1754934455191,0.03,178.42,178.4,89.87]
[1754934455395,0.03,178.42,178.41,9.59362273]
[1754934455595,0.03,178.42,178.41,50.55362273]
[1754934457801,0.03,178.42,178.41,71.26490528]
[1754934458012,0.03,178.42,177.2,98.07222606]
[1754934458013,41.61,178.42,178.32,0.00050409]
[1754934458190,26.0,178.39,178.28,0.06]
[1754934458508,26.0,178.34,178.28,9.65362273]
[1754934458707,10.81428655,178.33,178.28,0.06]
[1754934458905,5.60789591,178.32,178.28,0.06]
[1754934459106,0.56066382,178.31,178.28,0.06]
[1754934459309,10.25362273,178.3,178.28,0.06]
[1754934459499,9.59362273,178.3,178.28,0.06]
[1754934459695,10.25362273,178.29,178.28,0.06]
[1754934460737,9.59362273,178.3,178.28,0.06]
[1754934460903,6.16827232,178.33,178.28,0.06]
[1754934461099,9.59362273,178.31,178.28,0.06]
[1754934461300,9.59362273,178.29,178.28,0.06]
[1754934461507,10.25362273,178.3,178.28,0.06]
[1754934462032,6.82827232,178.33,178.28,0.06]
[1754934462193,9.59362273,178.32,178.28,0.06]
[1754934462597,10.25362273,178.32,178.28,0.06]
[1754934463219,9.59362273,178.33,178.28,9.65362273]
[1754934463394,0.66,178.33,178.28,9.65362273]
[1754934463594,0.66,178.33,178.29,9.59362273]
[1754934463824,41.7615703,178.34,178.28,0.06]
[1754934464005,9.59362273,178.32,178.28,0.06]
[1754934464205,9.59362273,178.33,178.28,0.06]
[1754934464414,9.59362273,178.33,178.28,9.65362273]
[1754934464618,14.57768885,178.36,178.3,9.59362273]
[1754934464619,0.66,178.35,178.3,9.59362273]
[1754934464812,10.25362273,178.35,178.3,9.59362273]
[1754934465119,26.0,178.37,178.31,9.59362273]
[1754934465302,9.59362273,178.36,178.32,9.59362273]
[1754934465504,9.59362273,178.36,178.31,9.59362273]
[1754934465725,0.66,178.36,178.29,5.60864045]
[1754934465904,0.66,178.36,178.32,9.59362273]
[1754934467015,10.25362273,178.36,178.31,9.59362273]
[1754934467217,10.25362273,178.36,178.32,9.59362273]
[1754934467905,10.25362273,178.36,178.3,5.60847498]
[1754934468105,10.25362273,178.36,178.32,9.59362273]
[1754934468423,26.0,178.37,178.33,9.59362273]
[1754934468625,0.56066382,178.39,178.33,9.59362273]
[1754934468626,9.59362273,178.38,178.33,9.59362273]
[1754934468931,10.25362273,178.38,178.33,9.59362273]
[1754934469929,10.25362273,178.37,178.32,99.49362273]
[1754934471523,10.25362273,178.37,178.33,9.59362273]
[1754934471823,10.25362273,178.37,178.32,89.9]
[1754934471824,1.22066382,178.36,178.32,89.9]
[1754934472026,9.59362273,178.33,178.32,89.9]
[1754934472404,6.1672142,178.37,178.32,89.9]
[1754934472604,0.66,178.36,178.32,99.49362273]
[1754934472906,10.25362273,178.36,178.32,89.9]
[1754934473121,9.59362273,178.35,178.32,89.9]
[1754934473322,6.16675526,178.38,178.32,89.9]
[1754934473625,9.59362273,178.36,178.32,89.9]
[1754934473929,10.25362273,178.38,178.33,9.59362273]
[1754934474098,10.25362273,178.38,178.32,89.9]
[1754934474302,9.59362273,178.37,178.33,89.9]
[1754934475431,10.25362273,178.37,178.33,89.9]
[1754934477405,9.59362273,178.37,178.33,89.9]
[1754934477608,5.60602717,178.38,178.33,89.9]
[1754934477805,41.19941427,178.39,178.34,9.59362273]
[1754934478002,9.59362273,178.38,178.33,99.49362273]
[1754934478440,10.25362273,178.38,178.33,99.49362273]
[1754934478813,9.59362273,178.37,178.33,99.49362273]
[1754934479434,10.25362273,178.37,178.33,89.9]
[1754934479909,9.59362273,178.35,178.33,89.9]
[1754934480115,0.66,178.34,178.28,35.65362273]
[1754934480316,9.59362273,178.33,178.29,51.47362273]
[1754934480507,9.59362273,178.33,178.29,41.88]
[1754934480708,9.59362273,178.33,178.29,51.47362273]
[1754934480908,0.56066382,178.36,178.31,9.59362273]
[1754934481131,9.59362273,178.36,178.31,9.59362273]
[1754934481437,9.59362273,178.35,178.29,41.88]
[1754934481740,10.25362273,178.35,178.3,9.59362273]
[1754934482237,9.59362273,178.35,178.3,9.59362273]
[1754934482933,9.59362273,178.36,178.31,9.59362273]
[1754934483232,9.59362273,178.35,178.31,9.59362273]
[1754934483611,10.27362273,178.35,178.3,9.59362273]
[1754934484110,9.59362273,178.33,178.29,41.88]
[1754934484309,0.68,178.33,178.3,9.59362273]
[1754934484519,0.68,178.35,178.3,9.59362273]
[1754934484722,0.68,178.35,178.29,41.88]
[1754934484936,0.68,178.35,178.31,9.59362273]
[1754934485159,9.59362273,178.34,178.29,41.88]
[1754934485332,0.68,178.34,178.3,9.59362273]
[1754934485743,5.6063618,178.37,178.33,9.59362273]
[1754934485937,9.59362273,178.38,178.33,99.49362273]
[1754934486129,10.27362273,178.38,178.33,99.49362273]
[1754934486329,10.27362273,178.37,178.33,89.9]
[1754934486927,9.59362273,178.38,178.33,99.49362273]
[1754934487140,10.27362273,178.38,178.33,99.49362273]
[1754934487345,10.27362273,178.37,178.33,89.9]
[1754934487541,10.27362273,178.37,178.33,99.49362273]
[1754934487961,0.68,178.37,178.33,99.49362273]
[1754934488271,0.68,178.37,178.33,89.9]
[1754934488428,0.68,178.37,178.33,99.49362273]
[1754934488627,9.59362273,178.38,178.33,99.49362273]
[1754934488828,6.28605098,178.38,178.33,99.49362273]
[1754934489029,26.0,178.39,178.35,9.59362273]
[1754934489329,0.68,178.4,178.36,9.59362273]
[1754934489532,15.75941855,178.41,178.36,9.59362273]
[1754934489533,52.08362273,178.42,178.37,9.59362273]
[1754934489852,9.62362273,178.42,178.37,9.59362273]
[1754934490038,0.03,178.42,178.38,51.31362273]
[1754934490436,0.71,178.41,178.38,41.72]
[1754934490648,0.71,178.41,178.38,51.31362273]
[1754934490833,0.03,178.41,178.38,41.72]
[1754934491243,0.03,178.41,178.38,51.31362273]
[1754934491570,0.03,178.41,178.39,9.59362273]
[1754934491726,0.03,178.41,178.38,41.72]
[1754934492072,0.03,178.41,178.38,51.31362273]
[1754934492536,0.03,178.41,178.4,9.59362273]
[1754934493153,0.03,178.41,178.4,99.49362273]
[1754934493830,0.03,178.41,178.4,105.09900389]
[1754934494460,0.03,178.42,178.41,89.87]
[1754934494661,0.03,178.42,178.41,141.10362273]
[1754934494970,0.03,178.42,178.41,146.70868971]
[1754934495348,0.03,178.42,178.41,137.11506698]
[1754934495541,0.03,178.42,178.41,131.49]
[1754934496273,0.71,178.42,178.41,41.62]
[1754934496672,0.03,178.42,178.41,41.62]
[1754934497155,0.71,178.42,178.41,41.62]
[1754934497859,0.03,178.42,178.41,41.62]
[1754934498247,0.71,178.42,178.39,9.59362273]
[1754934498450,0.71,178.42,178.32,24.0747786]
[1754934498451,9.59362273,178.4,178.3,9.59362273]
[1754934498672,9.59362273,178.4,178.31,42.66]
[1754934498673,0.68,178.39,178.31,42.66]
[1754934498866,9.59362273,178.38,178.33,9.59362273]
[1754934499174,9.59362273,178.34,178.31,41.98]
[1754934499468,10.27362273,178.34,178.29,51.59362273]
[1754934499668,10.27362273,178.34,178.29,42.0]
[1754934499870,10.27362273,178.34,178.29,51.59362273]
[1754934500044,10.27362273,178.34,178.29,47.60879439]
[1754934500239,10.27362273,178.34,178.29,42.0]
[1754934500790,10.27362273,178.34,178.29,51.59362273]
[1754934501278,10.27362273,178.34,178.29,57.8824441]
[1754934501877,9.59362273,178.34,178.29,57.8824441]
[1754934503557,9.59362273,178.34,178.3,10.27362273]
[1754934503772,9.59362273,178.34,178.3,0.68]
[1754934505478,9.59362273,178.34,178.3,6.28851128]
[1754934506275,0.68,178.39,178.33,9.59362273]
[1754934506475,9.59362273,178.4,178.35,9.59362273]
[1754934506776,10.27362273,178.39,178.34,51.43362273]
[1754934507079,10.27362273,178.38,178.34,51.43362273]
[1754934507279,10.27362273,178.38,178.34,57.0407008]
[1754934507458,26.59066382,178.42,178.34,57.0407008]
[1754934507650,9.59362273,178.4,178.35,10.27362273]
[1754934507978,0.03,178.42,178.38,9.59362273]
[1754934508276,0.03,178.42,178.4,9.59362273]
[1754934508974,0.03,178.42,178.41,9.59362273]
[1754934509178,0.03,178.42,178.4,9.59362273]
[1754934509356,0.03,178.42,178.41,15.19868971]
[1754934510654,0.03,178.42,178.41,15.87868971]
[1754934511583,0.03,178.42,178.3,0.06]
[1754934511584,0.59066382,178.42,178.3,0.06]
[1754934511783,0.59066382,178.42,178.38,9.59362273]
[1754934511784,0.03,178.42,178.38,9.59362273]
[1754934512082,10.27362273,178.41,178.36,9.59362273]
[1754934512289,9.59362273,178.38,178.33,9.59362273]